[Event "MČR v bleskovém šachu družstev 2019"]
[Site "Teplice, Czech Republic"]
[Date "2019.09.14"]
[Round "13.4"]
[White "Hosnedl, Matyas"]
[Black "Vymazal, Bronislav"]
[Result "0-1"]
[TimeControl "3 mim. + 2 s"]
[WhiteFideId "390011"]
[BlackFideId "318396"]
[WhiteElo "1852"]
[BlackElo "2309"]

1. e4 {[%clk 00:03:03]} b6 {[%clk 00:03:03]} {[%emt 00:00:01]} 2. d4 {[%clk
00:03:04]} {[%emt 00:00:01]} Bb7 {[%clk 00:03:05]} 3. Nc3 {[%clk 00:03:05]}
{[%emt 00:00:01]} e6 {[%clk 00:03:06]} 4. a3 {[%clk 00:03:06]} c5 {[%clk
00:02:58]} {[%emt 00:00:10]} 5. Nf3 {[%clk 00:03:07]} {[%emt 00:00:02]} cxd4
{[%clk 00:02:59]} {[%emt 00:00:01]} 6. Nxd4 {[%clk 00:03:08]} a6 {[%clk
00:02:52]} {[%emt 00:00:08]} 7. Be3 {[%clk 00:02:59]} {[%emt 00:00:12]} Ne7
{[%clk 00:02:52]} {[%emt 00:00:01]} 8. Bd3 {[%clk 00:02:55]} {[%emt 00:00:07]}
Nbc6 {[%clk 00:02:53]} {[%emt 00:00:01]} 9. Nxc6 {[%clk 00:02:55]} {[%emt
00:00:03]} Nxc6 {[%clk 00:02:53]} {[%emt 00:00:02]} 10. O-O {[%clk 00:02:51]}
{[%emt 00:00:06]} Qc7 {[%clk 00:02:45]} {[%emt 00:00:09]} 11. f4 {[%clk
00:02:49]} {[%emt 00:00:04]} Be7 {[%clk 00:02:42]} {[%emt 00:00:05]} 12. Qf3
{[%clk 00:02:41]} {[%emt 00:00:10]} b5 {[%clk 00:02:14]} {[%emt 00:00:29]} 13.
Qg3 {[%clk 00:02:33]} {[%emt 00:00:10]} O-O {[%clk 00:02:11]} {[%emt 00:00:04]}
14. e5 {[%clk 00:02:13]} {[%emt 00:00:23]} f5 {[%clk 00:01:48]} {[%emt
00:00:26]} 15. Ne2 {[%clk 00:01:36]} {[%emt 00:00:38]} Na5 {[%clk 00:01:31]}
{[%emt 00:00:18]} 16. b3 {[%clk 00:01:22]} {[%emt 00:00:17]} Be4 {[%clk
00:01:30]} {[%emt 00:00:03]} 17. Qf2 {[%clk 00:01:04]} {[%emt 00:00:20]} Bxd3
{[%clk 00:01:29]} {[%emt 00:00:04]} 18. cxd3 {[%clk 00:01:04]} {[%emt
00:00:02]} Nxb3 {[%clk 00:01:29]} {[%emt 00:00:02]} 19. Rab1 {[%clk 00:01:03]}
{[%emt 00:00:02]} Qc2 {[%clk 00:01:08]} {[%emt 00:00:24]} 20. d4 {[%clk
00:00:19]} {[%emt 00:00:47]} Bxa3 {[%clk 00:00:57]} {[%emt 00:00:13]} 21. Qf3
{[%clk 00:00:10]} {[%emt 00:00:11]} a5 {[%clk 00:00:49]} {[%emt 00:00:09]} 22.
Bf2 {[%emt 00:00:10]} a4 {[%clk 00:00:47]} {[%emt 00:00:02]} 23. d5 {[%clk
00:00:04]} Nd2 {[%clk 00:00:32]} {[%emt 00:00:18]} 24. Qxa3 {[%clk 00:00:03]}
{[%emt 00:00:04]} Nxb1 {[%clk 00:00:30]} {[%emt 00:00:04]} 25. Qb4 {[%clk
00:00:04]} Qxe2 {[%clk 00:00:22]} {[%emt 00:00:11]} 26. Rxb1 {[%clk 00:00:05]}
{[%emt 00:00:01]} a3 {[%clk 00:00:22]} {[%emt 00:00:02]} 27. dxe6 {[%clk
00:00:05]} {[%emt 00:00:02]} dxe6 {[%clk 00:00:23]} {[%emt 00:00:01]} 28. Qd6
{[%clk 00:00:05]} {[%emt 00:00:02]} Qc4 {[%clk 00:00:23]} {[%emt 00:00:01]} 0-1

[Event "MČR v bleskovém šachu družstev 2019"]
[Site "Teplice, Czech Republic"]
[Date "2019.09.14"]
[Round "13.5"]
[White "Trepka, Jan"]
[Black "Jirovsky, Milos"]
[Result "1/2-1/2"]
[TimeControl "3 mim. + 2 s"]
[BlackTitle "GM"]
[WhiteFideId "322814"]
[BlackFideId "303224"]
[WhiteElo "2186"]
[BlackElo "2499"]

1. d4 {[%clk 00:03:02]} {[%emt 00:00:02]} d5 {[%clk 00:03:03]} 2. c4 {[%clk
00:03:04]} {[%emt 00:00:02]} e6 {[%clk 00:03:05]} 3. a3 {[%clk 00:03:05]}
{[%emt 00:00:01]} Nf6 {[%clk 00:03:05]} {[%emt 00:00:01]} 4. Nc3 {[%clk
00:03:06]} c6 {[%clk 00:02:55]} {[%emt 00:00:12]} 5. c5 {[%clk 00:03:05]}
{[%emt 00:00:03]} b6 {[%clk 00:02:37]} {[%emt 00:00:20]} 6. b4 {[%clk
00:03:06]} a5 {[%clk 00:02:38]} 7. Bf4 {[%clk 00:03:07]} {[%emt 00:00:02]} Ba6
{[%clk 00:02:40]} {[%emt 00:00:01]} 8. Nf3 {[%clk 00:03:06]} {[%emt 00:00:02]}
Nbd7 {[%clk 00:02:39]} {[%emt 00:00:03]} 9. e3 {[%clk 00:02:37]} {[%emt
00:00:31]} Bxf1 {[%clk 00:02:39]} {[%emt 00:00:01]} 10. Kxf1 {[%clk 00:02:38]}
{[%emt 00:00:01]} Be7 {[%clk 00:02:35]} {[%emt 00:00:07]} 11. h3 {[%clk
00:02:37]} {[%emt 00:00:03]} O-O {[%clk 00:02:35]} {[%emt 00:00:02]} 12. g4
{[%clk 00:02:37]} {[%emt 00:00:03]} Ne4 {[%clk 00:02:19]} {[%emt 00:00:17]} 13.
Nxe4 {[%clk 00:02:09]} {[%emt 00:00:29]} dxe4 {[%clk 00:02:20]} {[%emt
00:00:01]} 14. Ne5 {[%clk 00:02:10]} Nxe5 {[%clk 00:02:03]} {[%emt 00:00:19]}
15. Bxe5 {[%clk 00:02:11]} {[%emt 00:00:01]} Qd5 {[%clk 00:01:50]} {[%emt
00:00:16]} 16. Kg2 {[%clk 00:01:48]} {[%emt 00:00:25]} b5 {[%clk 00:01:46]}
{[%emt 00:00:05]} 17. Rf1 {[%clk 00:01:37]} {[%emt 00:00:12]} Ra7 {[%clk
00:01:44]} {[%emt 00:00:04]} 18. Qd2 {[%clk 00:01:26]} {[%emt 00:00:14]} Rfa8
{[%clk 00:01:40]} {[%emt 00:00:06]} 19. Qb2 {[%clk 00:01:27]} {[%emt 00:00:01]}
f6 {[%clk 00:01:23]} {[%emt 00:00:19]} 20. Bg3 {[%clk 00:01:25]} {[%emt
00:00:03]} Kf7 {[%clk 00:01:24]} {[%emt 00:00:01]} 21. a4 {[%clk 00:01:20]}
{[%emt 00:00:07]} axb4 {[%clk 00:01:09]} {[%emt 00:00:17]} 22. axb5 {[%clk
00:01:20]} {[%emt 00:00:02]} Rxa1 {[%clk 00:00:54]} {[%emt 00:00:18]} 23. Rxa1
{[%clk 00:01:19]} {[%emt 00:00:03]} Rxa1 {[%clk 00:00:55]} {[%emt 00:00:01]} 24.
Qxa1 {[%clk 00:01:20]} {[%emt 00:00:01]} cxb5 {[%clk 00:00:56]} {[%emt
00:00:01]} 25. Qa6 {[%clk 00:01:12]} {[%emt 00:00:09]} e5 {[%clk 00:00:38]}
{[%emt 00:00:19]} 26. dxe5 {[%clk 00:01:00]} {[%emt 00:00:14]} fxe5 {[%clk
00:00:39]} {[%emt 00:00:01]} 27. c6 {[%clk 00:00:55]} {[%emt 00:00:07]} Qc5
{[%clk 00:00:38]} {[%emt 00:00:04]} 28. Qb7 {[%clk 00:00:53]} {[%emt 00:00:04]}
b3 {[%clk 00:00:24]} {[%emt 00:00:16]} 29. c7 b2 30. c8=Q {[%clk 00:00:53]}
{[%emt 00:00:02]} Qxc8 {[%clk 00:00:27]} {[%emt 00:00:01]} 31. Qxc8 {[%clk
00:00:54]} {[%emt 00:00:01]} b1=Q {[%clk 00:00:28]} 32. Qf5+ {[%clk 00:00:54]}
{[%emt 00:00:02]} Ke8 {[%clk 00:00:27]} {[%emt 00:00:03]} 1/2-1/2

[Event "MČR v bleskovém šachu družstev 2019"]
[Site "Teplice, Czech Republic"]
[Date "2019.09.14"]
[Round "13.6"]
[White "Sokolov, Alexander"]
[Black "Ruzicka, Ales"]
[Result "1-0"]
[TimeControl "3 mim. + 2 s"]
[WhiteTitle "FM"]
[WhiteFideId "4119177"]
[BlackFideId "325252"]
[WhiteElo "2417"]
[BlackElo "2102"]

1. e4 {[%clk 00:03:02]} c5 {[%clk 00:03:03]} {[%emt 00:00:01]} 2. Nf3 {[%clk
00:03:03]} {[%emt 00:00:01]} d6 {[%clk 00:03:04]} 3. d4 {[%clk 00:03:04]}
{[%emt 00:00:02]} cxd4 {[%clk 00:03:05]} {[%emt 00:00:01]} 4. Nxd4 {[%clk
00:03:06]} Nf6 {[%clk 00:03:05]} {[%emt 00:00:01]} 5. Nc3 {[%clk 00:03:07]}
{[%emt 00:00:01]} a6 {[%clk 00:03:06]} 6. Bc4 {[%clk 00:03:08]} {[%emt
00:00:01]} e6 {[%clk 00:03:06]} {[%emt 00:00:02]} 7. Bb3 {[%clk 00:03:09]}
{[%emt 00:00:01]} Be7 {[%clk 00:03:07]} 8. g4 {[%clk 00:03:11]} {[%emt
00:00:02]} Qc7 {[%clk 00:03:03]} {[%emt 00:00:05]} 9. g5 {[%clk 00:03:11]}
{[%emt 00:00:02]} Ng8 {[%clk 00:02:52]} {[%emt 00:00:13]} 10. Be3 {[%clk
00:03:07]} {[%emt 00:00:06]} Nc6 {[%clk 00:02:52]} {[%emt 00:00:02]} 11. Qe2
{[%clk 00:03:05]} {[%emt 00:00:04]} Bd7 {[%clk 00:02:40]} {[%emt 00:00:13]} 12.
h4 {[%clk 00:03:03]} {[%emt 00:00:04]} Rc8 {[%clk 00:02:37]} {[%emt 00:00:04]}
13. O-O-O {[%clk 00:03:01]} {[%emt 00:00:05]} b5 {[%clk 00:02:36]} {[%emt
00:00:03]} 14. h5 {[%clk 00:02:55]} {[%emt 00:00:08]} b4 {[%clk 00:02:13]}
{[%emt 00:00:24]} 15. Nb1 {[%clk 00:01:43]} {[%emt 00:01:15]} Nxd4 {[%clk
00:02:08]} {[%emt 00:00:07]} 16. Rxd4 {[%clk 00:01:43]} {[%emt 00:00:02]} a5
{[%clk 00:02:03]} {[%emt 00:00:06]} 17. Rc4 {[%clk 00:01:28]} {[%emt 00:00:17]}
Qb7 {[%clk 00:02:02]} {[%emt 00:00:03]} 18. Rxc8+ {[%clk 00:01:27]} {[%emt
00:00:04]} Qxc8 {[%clk 00:02:01]} {[%emt 00:00:03]} 19. Nd2 {[%clk 00:01:26]}
{[%emt 00:00:03]} h6 {[%clk 00:01:56]} {[%emt 00:00:07]} 20. g6 {[%clk
00:01:21]} {[%emt 00:00:07]} fxg6 {[%clk 00:01:53]} {[%emt 00:00:06]} 21. hxg6
{[%clk 00:01:12]} {[%emt 00:00:11]} Nf6 {[%clk 00:01:53]} {[%emt 00:00:02]} 22.
f4 {[%clk 00:01:08]} {[%emt 00:00:06]} Qc6 {[%clk 00:01:40]} {[%emt 00:00:14]}
23. Bd4 {[%clk 00:01:02]} {[%emt 00:00:09]} O-O {[%clk 00:01:15]} {[%emt
00:00:27]} 24. f5 {[%clk 00:01:02]} {[%emt 00:00:02]} Rc8 {[%clk 00:01:02]}
{[%emt 00:00:14]} 25. fxe6 {[%clk 00:01:01]} {[%emt 00:00:04]} Be8 {[%clk
00:01:01]} {[%emt 00:00:02]} 26. Rg1 {[%clk 00:00:53]} {[%emt 00:00:11]} a4
{[%clk 00:01:01]} {[%emt 00:00:02]} 27. Bc4 {[%clk 00:00:53]} {[%emt 00:00:02]}
d5 {[%clk 00:00:48]} {[%emt 00:00:15]} 28. Bxf6 {[%clk 00:00:31]} {[%emt
00:00:23]} Bxf6 {[%clk 00:00:44]} {[%emt 00:00:07]} 29. exd5 {[%clk 00:00:32]}
{[%emt 00:00:01]} Qc5 {[%clk 00:00:40]} {[%emt 00:00:06]} 30. Rf1 {[%clk
00:00:30]} {[%emt 00:00:05]} b3 {[%clk 00:00:35]} {[%emt 00:00:06]} 31. axb3
{[%clk 00:00:18]} {[%emt 00:00:14]} axb3 {[%clk 00:00:36]} 32. Bxb3 {[%clk
00:00:18]} {[%emt 00:00:02]} Bg5 {[%clk 00:00:32]} {[%emt 00:00:06]} 33. Kb1
{[%clk 00:00:14]} {[%emt 00:00:06]} Bxg6 {[%clk 00:00:31]} {[%emt 00:00:03]} 34.
Ne4 {[%clk 00:00:14]} {[%emt 00:00:02]} Bxe4 {[%clk 00:00:23]} {[%emt
00:00:10]} 35. Qxe4 {[%clk 00:00:15]} {[%emt 00:00:01]} Ra8 {[%clk 00:00:15]}
{[%emt 00:00:10]} 36. d6 {[%clk 00:00:16]} {[%emt 00:00:01]} Qa5 {[%clk
00:00:15]} {[%emt 00:00:02]} 37. e7+ {[%clk 00:00:17]} {[%emt 00:00:01]} Kh8
{[%clk 00:00:13]} {[%emt 00:00:04]} 38. Rf8+ {[%clk 00:00:18]} 1-0

[Event "MČR v bleskovém šachu družstev 2019"]
[Site "Teplice, Czech Republic"]
[Date "2019.09.14"]
[Round "13.7"]
[White "Loskot, Petr"]
[Black "Dolezal, Radoslav"]
[Result "0-1"]
[TimeControl "3 mim. + 2 s"]
[BlackTitle "IM"]
[WhiteFideId "319570"]
[BlackFideId "304735"]
[WhiteElo "2010"]
[BlackElo "2359"]

1. e4 {[%clk 00:03:01]} {[%emt 00:00:01]} c6 {[%clk 00:03:02]} {[%emt
00:00:03]} 2. d4 {[%clk 00:03:02]} {[%emt 00:00:01]} d5 {[%clk 00:03:03]}
{[%emt 00:00:01]} 3. exd5 {[%clk 00:03:03]} {[%emt 00:00:01]} cxd5 {[%clk
00:03:04]} 4. Bd3 {[%clk 00:03:03]} {[%emt 00:00:01]} Nf6 {[%clk 00:03:05]}
{[%emt 00:00:02]} 5. c3 {[%clk 00:03:02]} {[%emt 00:00:03]} Nc6 {[%clk
00:03:04]} {[%emt 00:00:03]} 6. Nf3 {[%clk 00:03:02]} {[%emt 00:00:02]} Bg4
{[%clk 00:03:05]} {[%emt 00:00:02]} 7. h3 {[%clk 00:03:02]} {[%emt 00:00:02]}
Bh5 {[%clk 00:03:05]} {[%emt 00:00:01]} 8. Bg5 {[%clk 00:03:01]} {[%emt
00:00:03]} e6 {[%clk 00:03:02]} {[%emt 00:00:05]} 9. Nbd2 {[%clk 00:02:52]}
{[%emt 00:00:11]} Bd6 {[%clk 00:02:59]} {[%emt 00:00:06]} 10. Qb3 {[%clk
00:02:52]} {[%emt 00:00:02]} Qc7 {[%clk 00:02:53]} {[%emt 00:00:09]} 11. Rc1
{[%clk 00:02:39]} {[%emt 00:00:14]} Bg6 {[%clk 00:02:49]} {[%emt 00:00:06]} 12.
Bxg6 {[%clk 00:02:25]} {[%emt 00:00:17]} hxg6 {[%clk 00:02:49]} {[%emt
00:00:01]} 13. c4 {[%clk 00:02:13]} {[%emt 00:00:14]} dxc4 {[%clk 00:02:49]}
{[%emt 00:00:02]} 14. Nxc4 {[%clk 00:02:13]} {[%emt 00:00:02]} Nd5 {[%clk
00:02:39]} {[%emt 00:00:12]} 15. Nce5 {[%clk 00:02:07]} {[%emt 00:00:08]} O-O
{[%clk 00:02:12]} {[%emt 00:00:29]} 16. Nxc6 {[%clk 00:02:06]} {[%emt
00:00:03]} bxc6 {[%clk 00:02:14]} {[%emt 00:00:01]} 17. O-O {[%clk 00:02:04]}
{[%emt 00:00:04]} Rab8 {[%clk 00:02:06]} {[%emt 00:00:09]} 18. Qa4 {[%clk
00:01:58]} {[%emt 00:00:08]} Rxb2 {[%clk 00:01:53]} {[%emt 00:00:16]} 19. Rxc6
{[%clk 00:01:58]} {[%emt 00:00:02]} Qb8 {[%clk 00:01:41]} {[%emt 00:00:14]} 20.
Rfc1 {[%clk 00:01:13]} {[%emt 00:00:47]} Nb4 {[%clk 00:01:14]} {[%emt
00:00:28]} 21. R6c3 {[%clk 00:00:30]} {[%emt 00:00:45]} Nxa2 {[%clk 00:01:10]}
{[%emt 00:00:07]} 22. Ra1 {[%clk 00:00:20]} {[%emt 00:00:12]} Nxc3 {[%clk
00:01:09]} {[%emt 00:00:03]} 0-1

[Event "MČR v bleskovém šachu družstev 2019"]
[Site "Teplice, Czech Republic"]
[Date "2019.09.14"]
[Round "13.8"]
[White "Postupa, Pavel"]
[Black "Meszaros, Ludek"]
[Result "0-1"]
[TimeControl "3 mim. + 2 s"]
[WhiteFideId "326410"]
[BlackFideId "308153"]
[WhiteElo "2184"]
[BlackElo "2070"]

1. e4 {[%clk 00:03:02]} {[%emt 00:00:02]} e5 {[%clk 00:03:03]} 2. Nf3 {[%clk
00:03:03]} {[%emt 00:00:02]} Nc6 {[%clk 00:03:05]} 3. Bb5 {[%clk 00:03:04]} a6
{[%clk 00:03:06]} 4. Ba4 {[%clk 00:03:06]} Nf6 {[%clk 00:03:07]} {[%emt
00:00:03]} 5. O-O {[%clk 00:03:06]} {[%emt 00:00:02]} Be7 {[%clk 00:03:08]} 6.
d3 {[%clk 00:03:07]} {[%emt 00:00:02]} d6 {[%clk 00:03:09]} {[%emt 00:00:01]} 7.
c4 {[%clk 00:03:08]} {[%emt 00:00:01]} O-O {[%clk 00:03:09]} {[%emt 00:00:02]}
8. h3 {[%clk 00:03:09]} h6 {[%clk 00:03:06]} {[%emt 00:00:06]} 9. Re1 {[%clk
00:03:10]} {[%emt 00:00:01]} Re8 {[%clk 00:03:07]} 10. Nbd2 {[%clk 00:03:11]}
{[%emt 00:00:01]} Bf8 {[%clk 00:03:08]} {[%emt 00:00:01]} 11. Nf1 {[%clk
00:03:12]} {[%emt 00:00:01]} Bd7 {[%clk 00:03:08]} {[%emt 00:00:01]} 12. Ng3
{[%clk 00:03:13]} g6 {[%clk 00:03:02]} {[%emt 00:00:09]} 13. Bxc6 {[%clk
00:03:14]} {[%emt 00:00:02]} bxc6 {[%clk 00:02:59]} {[%emt 00:00:05]} 14. Be3
{[%clk 00:03:14]} {[%emt 00:00:01]} Bg7 {[%clk 00:02:59]} {[%emt 00:00:03]} 15.
Qd2 {[%clk 00:03:15]} {[%emt 00:00:01]} Kh7 {[%clk 00:03:00]} 16. Nh2 {[%clk
00:03:16]} {[%emt 00:00:02]} d5 {[%clk 00:02:44]} {[%emt 00:00:18]} 17. Qc2
{[%clk 00:03:04]} {[%emt 00:00:14]} d4 {[%clk 00:02:38]} {[%emt 00:00:08]} 18.
Bd2 {[%clk 00:03:06]} c5 {[%clk 00:02:38]} {[%emt 00:00:02]} 19. f4 {[%clk
00:03:04]} {[%emt 00:00:04]} exf4 {[%clk 00:02:25]} {[%emt 00:00:15]} 20. Bxf4
{[%clk 00:03:05]} {[%emt 00:00:01]} Be6 {[%clk 00:02:25]} {[%emt 00:00:02]} 21.
Rf1 {[%clk 00:03:06]} {[%emt 00:00:02]} Nd7 {[%clk 00:02:24]} {[%emt 00:00:03]}
22. Nf3 {[%clk 00:03:01]} {[%emt 00:00:06]} a5 {[%clk 00:02:07]} {[%emt
00:00:19]} 23. Qd2 {[%clk 00:03:00]} {[%emt 00:00:03]} a4 {[%clk 00:02:04]}
{[%emt 00:00:04]} 24. Rf2 {[%clk 00:02:37]} {[%emt 00:00:26]} Rb8 {[%clk
00:01:51]} {[%emt 00:00:15]} 25. Raf1 {[%clk 00:02:37]} {[%emt 00:00:02]} Rb6
{[%clk 00:01:49]} {[%emt 00:00:04]} 26. Qd1 {[%clk 00:02:36]} {[%emt 00:00:03]}
Qb8 {[%clk 00:01:44]} {[%emt 00:00:07]} 27. Bc1 {[%clk 00:02:35]} {[%emt
00:00:03]} Ra6 {[%clk 00:01:39]} {[%emt 00:00:07]} 28. Qd2 {[%clk 00:02:28]}
{[%emt 00:00:09]} Qb4 {[%clk 00:01:26]} {[%emt 00:00:14]} 29. Qd1 {[%clk
00:02:23]} {[%emt 00:00:07]} Nb8 {[%clk 00:01:22]} {[%emt 00:00:06]} 30. Nh2
{[%clk 00:02:17]} {[%emt 00:00:08]} Nc6 {[%clk 00:01:20]} {[%emt 00:00:04]} 31.
Ng4 {[%clk 00:02:13]} {[%emt 00:00:07]} Bxg4 {[%clk 00:01:13]} {[%emt
00:00:09]} 32. hxg4 {[%clk 00:02:03]} {[%emt 00:00:13]} Ne5 {[%clk 00:01:13]}
{[%emt 00:00:01]} 33. Bf4 {[%clk 00:02:03]} {[%emt 00:00:02]} f6 {[%clk
00:01:06]} {[%emt 00:00:09]} 34. Bxe5 {[%clk 00:02:02]} {[%emt 00:00:03]} Rxe5
{[%clk 00:01:05]} {[%emt 00:00:03]} 35. Rc2 {[%clk 00:01:49]} {[%emt 00:00:15]}
Qb8 {[%clk 00:01:05]} {[%emt 00:00:02]} 36. Rff2 {[%clk 00:01:36]} {[%emt
00:00:16]} Rae6 {[%clk 00:01:00]} {[%emt 00:00:07]} 37. Nf1 {[%clk 00:01:37]}
{[%emt 00:00:01]} c6 {[%clk 00:00:57]} {[%emt 00:00:04]} 38. Nh2 {[%clk
00:01:38]} Rg5 {[%clk 00:00:55]} {[%emt 00:00:04]} 39. Rce2 {[%clk 00:01:30]}
{[%emt 00:00:10]} a3 {[%clk 00:00:51]} {[%emt 00:00:06]} 40. bxa3 {[%clk
00:01:30]} {[%emt 00:00:02]} Qa7 {[%clk 00:00:40]} {[%emt 00:00:13]} 41. Qb3
{[%clk 00:01:25]} {[%emt 00:00:07]} Re7 {[%clk 00:00:39]} {[%emt 00:00:03]} 42.
Rb2 {[%clk 00:01:26]} {[%emt 00:00:01]} Qa5 {[%clk 00:00:38]} {[%emt 00:00:03]}
43. Rf1 {[%clk 00:01:16]} {[%emt 00:00:12]} Ra7 {[%clk 00:00:37]} {[%emt
00:00:03]} 44. Qb8 {[%clk 00:00:38]} {[%emt 00:00:41]} Qxa3 {[%emt 00:00:02]}
45. Rb3 Qxa2 {[%clk 00:00:33]} {[%emt 00:00:05]} 46. Rb7 {[%clk 00:00:39]}
{[%emt 00:00:02]} Rxb7 {[%clk 00:00:31]} {[%emt 00:00:04]} 47. Qxb7 {[%clk
00:00:39]} {[%emt 00:00:03]} Qd2 {[%clk 00:00:31]} {[%emt 00:00:01]} 48. Qb3
{[%clk 00:00:31]} {[%emt 00:00:10]} Qe3+ {[%clk 00:00:30]} {[%emt 00:00:02]} 49.
Kh1 {[%clk 00:00:32]} {[%emt 00:00:02]} h5 {[%clk 00:00:29]} {[%emt 00:00:03]}
50. Qd1 {[%clk 00:00:19]} {[%emt 00:00:15]} hxg4 {[%clk 00:00:27]} {[%emt
00:00:05]} 51. g3 {[%clk 00:00:20]} {[%emt 00:00:01]} f5 {[%clk 00:00:20]}
{[%emt 00:00:09]} 52. e5 {[%clk 00:00:10]} {[%emt 00:00:12]} Qxg3 {[%clk
00:00:19]} {[%emt 00:00:03]} 53. e6 {[%clk 00:00:10]} {[%emt 00:00:02]} Rh5
{[%clk 00:00:20]} 54. Qe2 {[%clk 00:00:10]} {[%emt 00:00:02]} Qb8 {[%clk
00:00:17]} {[%emt 00:00:04]} 55. Kg1 {[%clk 00:00:11]} {[%emt 00:00:02]} Qg3+
{[%clk 00:00:16]} {[%emt 00:00:03]} 56. Kh1 {[%clk 00:00:11]} {[%emt 00:00:02]}
Qb8 {[%clk 00:00:17]} {[%emt 00:00:01]} 57. Kg2 {[%clk 00:00:11]} {[%emt
00:00:02]} Rxh2+ {[%clk 00:00:16]} {[%emt 00:00:03]} 58. Kg1 {[%clk 00:00:12]}
Rxe2 {[%clk 00:00:17]} {[%emt 00:00:02]} 0-1

[Event "MČR v bleskovém šachu družstev 2019"]
[Site "Teplice, Czech Republic"]
[Date "2019.09.14"]
[Round "13.9"]
[White "Vykouk, Jan"]
[Black "Sykora, Ondrej"]
[Result "1/2-1/2"]
[TimeControl "3 mim. + 2 s"]
[WhiteTitle "IM"]
[WhiteElo "2439"]
[BlackElo "2122"]

1. e4 {[%emt 00:13:41]} e5 {[%emt 00:00:01]} 2. Nf3 {[%emt 00:00:01]} Nc6
{[%emt 00:00:01]} 3. Bc4 {[%emt 00:00:01]} Bc5 {[%emt 00:00:01]} 4. c3 {[%emt
00:00:04]} Nf6 {[%emt 00:00:02]} 5. d4 {[%emt 00:00:01]} exd4 {[%emt 00:00:01]}
6. O-O {[%emt 00:00:01]} Nxe4 {[%emt 00:00:23]} 7. cxd4 {[%emt 00:00:02]} Be7
{[%emt 00:00:01]} 8. d5 {[%emt 00:00:02]} Nd6 {[%emt 00:00:17]} 9. dxc6 {[%emt
00:00:27]} Nxc4 {[%emt 00:00:02]} 10. Qd4 {[%emt 00:00:01]} Nd6 {[%emt
00:00:51]} 11. Qxg7 {[%emt 00:00:06]} Rf8 {[%emt 00:00:01]} 12. cxd7+ {[%emt
00:01:20]} Bxd7 {[%emt 00:00:03]} 13. Nc3 {[%emt 00:00:04]} Be6 {[%emt
00:00:14]} 14. Re1 {[%emt 00:00:15]} Qd7 {[%emt 00:00:36]} 15. Ne5 {[%emt
00:00:05]} Qc8 {[%emt 00:00:29]} 16. Bh6 {[%emt 00:00:26]} Nf5 {[%emt
00:00:04]} 17. Qxh7 {[%emt 00:00:02]} Nxh6 {[%emt 00:00:01]} 18. Qxh6 {[%emt
00:00:01]} c6 {[%emt 00:00:06]} 19. Rad1 {[%emt 00:00:04]} Qc7 {[%emt
00:00:01]} 20. Qe3 {[%emt 00:00:13]} Rd8 {[%emt 00:00:02]} 21. Rxd8+ {[%emt
00:00:06]} Qxd8 {[%emt 00:00:04]} 22. Qxa7 {[%emt 00:00:03]} Qc7 {[%emt
00:00:03]} 23. Qa8+ {[%emt 00:00:06]} Bd8 {[%emt 00:00:01]} 24. Qa7 {[%emt
00:00:05]} Rg8 {[%emt 00:00:05]} 25. Qe3 {[%emt 00:00:02]} Bf6 {[%emt
00:00:04]} 26. g3 {[%emt 00:00:02]} Kf8 {[%emt 00:00:06]} 27. Nxf7 {[%emt
00:00:02]} Bxf7 {[%emt 00:00:02]} 28. Ne4 {[%emt 00:00:02]} Qe5 {[%emt
00:00:03]} 29. Qa3+ {[%emt 00:00:04]} Be7 30. Qe3 {[%emt 00:00:01]} Bd5 {[%emt
00:00:06]} 31. f4 {[%emt 00:00:03]} Qxe4 {[%emt 00:00:03]} 32. Qxe4 Bxe4 33.
Rxe4 {[%emt 00:00:01]} Kf7 {[%emt 00:00:03]} 34. Kg2 {[%emt 00:00:01]} Ra8 35.
a3 {[%emt 00:00:01]} c5 {[%emt 00:00:03]} 36. g4 {[%emt 00:00:01]} b5 {[%emt
00:00:02]} 37. Kf3 {[%emt 00:00:01]} Rd8 {[%emt 00:00:02]} 38. Re2 {[%emt
00:00:02]} Rd3+ 39. Ke4 {[%emt 00:00:01]} Rb3 {[%emt 00:00:01]} 40. g5 {[%emt
00:00:01]} c4 {[%emt 00:00:02]} 41. h4 {[%emt 00:00:02]} c3 {[%emt 00:00:01]}
42. bxc3 Rxc3 {[%emt 00:00:01]} 43. Rb2 {[%emt 00:00:03]} Rc4+ {[%emt
00:00:07]} 44. Kf5 {[%emt 00:00:08]} Rc5+ 45. Kg4 Bxg5 46. hxg5 Rc4 {[%emt
00:00:01]} 1/2-1/2